bitfinex/quotes_ETHUSD_20241120
["timestamp","ask_amount","ask_price","bid_price","bid_amount"]
[1732113263045,1.1495,3119.7,3119.2,1.28237]
[1732113263432,1.1495,3119.7,3119.3,1.28232]
[1732113263729,1.1495,3119.7,3118.7,1.28258]
[1732113263916,4.17010437,3120.6,3119.9,1.28208]
[1732113264117,1.1839,3120.6,3119.2,0.03205531]
[1732113264323,0.438831,3120.5,3119.2,0.03205531]
[1732113264619,1.1839,3120.6,3119.5,1.60279]
[1732113264820,2.50232556,3121.3,3120.7,1.60219]
[1732113265044,1.1839,3121.3,3119.9,1.1908]
[1732113265244,1.1839,3121.3,3120.0,1.60256]
[1732113265423,5.80149761,3121.6,3120.1,0.03204156]
[1732113265752,0.59360232,3121.5,3120.2,1.60246]
[1732113265926,0.59360232,3121.5,3121.4,1.60184]
[1732113266124,4.61759761,3121.6,3121.5,1.60179]
[1732113267108,4.61759761,3121.6,3121.4,1.6018]
[1732113267311,4.61759761,3121.6,3121.5,1.60179]
[1732113268405,5.07935737,3121.6,3120.5,1.6023]
[1732113268610,3.2037,3121.4,3120.6,1.60221]
[1732113268848,0.50793574,3121.5,3120.1,0.03203223]
[1732113269019,4.61759761,3121.6,3121.1,1.60196]
[1732113269343,0.55,3121.5,3120.1,0.03203223]
[1732113269549,0.55,3121.1,3120.6,1.60224]
[1732113269846,3.7538,3121.3,3120.1,0.03203795]
[1732113270068,4.074169,3121.3,3120.5,1.60226]
[1732113270211,3.75409,3121.1,3120.0,1.60256]
[1732113270418,1.1242,3120.7,3119.8,1.60264]
[1732113270718,0.55,3120.6,3120.4,1.60235]
[1732113271021,4.78726288,3121.2,3120.2,1.60245]
[1732113271022,1.1242,3121.2,3120.2,1.60245]
[1732113271336,0.55,3120.9,3119.4,1.60286]
[1732113271547,0.55,3119.9,3119.3,1.6029]
[1732113271713,4.3288,3120.6,3119.6,1.60272]
[1732113271910,0.55,3120.3,3119.8,1.60265]
[1732113272133,0.46842,3121.0,3119.4,1.61286771]
[1732113272444,0.55,3121.0,3120.0,1.60256]
[1732113272650,3.20429,3120.9,3120.2,1.60244]
[1732113272949,0.55,3121.0,3120.3,1.6024]
[1732113273164,3.0,3121.6,3120.3,1.6024]
[1732113273165,3.20306,3122.1,3120.8,1.2113]
[1732113273445,1.1289,3122.3,3120.8,1.2113]
[1732113273650,3.20288,3122.2,3121.4,1.60183]
[1732113273809,0.433178,3122.1,3121.2,0.03203483]
[1732113274011,1.1289,3122.3,3121.4,1.60184]
[1732113274234,1.1289,3122.3,3121.5,1.28143]
[1732113274404,4.33166,3122.3,3121.4,1.63387329]
[1732113274624,4.764826,3122.3,3121.4,1.63387329]
[1732113274823,1.562066,3122.3,3121.8,1.28127]
[1732113275356,3.20296,3122.2,3121.5,1.2814]
[1732113275508,3.20296,3122.2,3120.6,0.01]
[1732113275509,3.20298,3122.1,3120.7,4.28172]
[1732113275710,3.20317,3121.9,3121.3,1.28151]
[1732113275958,0.320298,3122.0,3121.3,1.28149]
[1732113276122,0.55,3121.9,3121.1,1.28159]
[1732113276325,0.55,3121.9,3120.8,1.2113]
[1732113276326,0.55,3121.7,3120.9,1.28164]
[1732113276658,0.55,3121.7,3120.9,1.28165]
[1732113276824,3.578518,3121.9,3121.1,1.28156]
[1732113276825,0.55,3121.8,3121.1,1.28156]
[1732113277027,1.1289,3122.3,3121.2,0.03203616]
[1732113277225,0.55,3121.9,3121.3,1.28147]
[1732113277425,0.55,3121.9,3120.7,1.31375329]
[1732113277426,3.75318,3121.9,3121.1,1.28158]
[1732113277613,0.55,3121.7,3120.7,1.28176]
[1732113277815,0.55,3121.3,3120.7,1.28176]
[1732113278157,3.20302,3122.1,3120.7,1.28173]
[1732113278365,3.75309,3122.0,3121.3,1.28148]
[1732113278714,0.55,3122.0,3121.4,1.28146]
[1732113278941,0.55,3121.8,3121.1,1.28158]
[1732113279143,0.55,3121.8,3120.3,1.1246]
[1732113279144,0.55,3121.6,3120.9,1.28164]
[1732113279659,2.09460608,3123.6,3120.4,3.03203493]
[1732113279660,3.7534,3121.7,3120.8,1.28171]
[1732113279811,3.7534,3121.7,3121.0,1.2816]
[1732113280012,3.7534,3121.7,3120.6,0.03203709]
[1732113280013,0.55,3121.7,3120.6,0.03203709]
[1732113280211,0.55,3121.5,3120.7,1.28173]
[1732113280515,0.55,3121.3,3120.9,1.28164]
[1732113280759,0.55,3121.3,3120.3,1.15663996]
[1732113280916,3.20391,3121.2,3120.5,1.28181]
[1732113281120,3.20423,3120.9,3120.2,1.28194]
[1732113281314,1.1801,3121.3,3120.1,0.03204387]
[1732113281519,0.55,3121.2,3120.9,1.28167]
[1732113281865,0.55,3121.4,3120.9,1.28167]
[1732113282351,0.55,3121.4,3120.4,0.03203901]
[1732113282352,3.20366,3121.5,3120.5,1.28184]
[1732113282565,0.55,3121.4,3120.9,1.28168]
[1732113282927,0.55,3121.4,3121.0,1.28164]
[1732113283129,1.1801,3121.8,3121.3,1.28151]
[1732113283552,1.1801,3121.8,3121.1,1.28157]
[1732113283716,3.0,3122.3,3121.4,1.28144]
[1732113283921,1.1497,3122.3,3121.5,0.02880906]
[1732113284147,1.1497,3122.8,3121.7,3.0]
[1732113284465,1.1497,3122.8,3122.3,1.60134]
[1732113284661,4.35147,3123.3,3122.5,1.60124]
[1732113284862,1.1497,3123.3,3122.8,1.60108]
[1732113285045,1.91443139,3123.3,3122.8,1.60108]
[1732113285236,3.2960639,3123.4,3123.0,1.601]
[1732113285667,6.4977139,3123.4,3122.8,1.60108]
[1732113285875,0.96992539,3123.3,3122.6,1.60121]
[1732113286327,4.17170539,3123.3,3121.8,1.60163]
[1732113286524,3.20243,3122.7,3122.0,1.60153]
[1732113286829,3.20252,3122.6,3121.7,1.2376]
[1732113287046,3.20249,3122.6,3121.8,1.60159]
[1732113287247,0.320249,3122.5,3121.7,1.60168]
[1732113287517,0.55,3122.3,3121.6,1.60172]
[1732113287758,0.55,3122.3,3121.8,1.60163]
[1732113287935,0.55,3122.3,3121.9,1.60158]
[1732113288139,3.20201,3123.1,3121.4,0.03202901]
[1732113288140,3.20243,3122.7,3121.4,1.60184]
[1732113288334,3.20246,3122.6,3121.9,1.60156]
[1732113288535,0.45839364,3123.1,3121.6,1.6017]
[1732113288735,1.1403,3123.3,3122.7,1.60113]
[1732113288960,7.37114437,3124.0,3122.4,3.0]
[1732113288961,3.2014,3123.7,3122.4,3.0]
[1732113289268,1.2307,3123.7,3122.4,3.44828785]
[1732113289428,4.43211,3123.7,3122.5,1.60128]
[1732113289624,3.644641,3123.6,3123.0,1.60101]
[1732113289857,3.644641,3123.6,3123.0,1.60098]
[1732113290230,0.443211,3123.6,3122.4,3.41627]
[1732113290433,0.443211,3123.6,3122.3,1.1627]
[1732113290434,1.2307,3123.7,3122.3,1.1627]
[1732113290661,1.1321,3122.7,3121.4,0.03202227]
[1732113290965,3.20311,3122.0,3121.3,1.60186]
[1732113291264,1.1321,3122.7,3121.4,1.60179]
[1732113291265,6.40583,3122.2,3121.4,1.60179]
[1732113291464,3.2031,3122.0,3121.3,1.60186]
[1732113291619,0.55,3121.8,3121.2,1.60193]
[1732113291820,0.55,3121.8,3121.2,1.60191]
[1732113292064,0.55,3121.8,3120.6,1.60224]
[1732113292369,0.55,3121.2,3120.7,1.60219]
[1732113292525,0.55,3120.9,3119.9,1.1483]
[1732113292726,0.55,3120.9,3120.5,1.60228]
[1732113292950,0.55,3121.1,3120.5,1.60228]
[1732113293279,0.55,3121.5,3120.8,1.60214]
[1732113293423,0.55,3121.8,3121.0,1.60204]
[1732113293625,0.01,3122.6,3120.4,0.03203796]
[1732113293626,4.35256,3122.3,3121.4,1.6018]
[1732113293935,3.20297,3122.1,3121.2,1.60193]
[1732113294140,3.20325,3121.9,3121.2,1.60193]
[1732113294325,3.20301,3122.1,3121.4,1.60184]
[1732113294524,3.20301,3122.1,3121.2,3.0]
[1732113294525,0.435271,3122.1,3121.2,3.0]
[1732113294764,1.1497,3122.3,3121.5,1.60176]
[1732113294926,1.1497,3122.3,3121.7,1.60166]
[1732113295125,3.20236,3122.7,3121.5,0.19220679]
[1732113295325,1.1497,3122.8,3122.1,1.60146]
[1732113295763,1.1497,3122.8,3121.9,1.60156]
[1732113295922,3.20274,3122.4,3121.7,3.20333]
[1732113296131,3.20252,3122.6,3121.7,1.60166]
[1732113296334,3.20252,3122.6,3120.9,1.1714]
[1732113296335,0.435222,3122.6,3120.9,1.1714]
[1732113296642,3.20296,3122.2,3121.4,1.60179]
[1732113296857,3.75304,3122.1,3121.5,1.60177]
[1732113297042,3.75304,3122.1,3121.0,0.03203787]
[1732113297043,3.75346,3121.7,3121.0,1.60204]
[1732113297231,0.55,3121.7,3121.2,1.60194]
[1732113297969,0.55,3121.7,3121.1,3.0]
[1732113297970,3.20243,3122.7,3121.1,1.60199]
[1732113298183,3.20273,3122.4,3121.8,1.60159]
[1732113298328,3.20243,3122.7,3121.2,5.0941441]
[1732113298329,3.20243,3122.7,3122.0,1.60153]
[1732113298529,3.20243,3122.7,3122.1,1.60148]
[1732113298730,3.20243,3122.7,3122.2,1.60143]
[1732113299035,3.20281,3122.3,3121.6,1.6017]
[1732113299230,0.435213,3122.6,3122.1,1.60148]
[1732113299541,3.20267,3122.4,3121.7,1.60168]
[1732113299747,1.1497,3122.8,3121.7,1.60168]
[1732113299748,3.75276,3122.3,3121.7,1.60168]
[1732113299949,0.55,3122.5,3121.6,1.6017]
[1732113300132,1.1497,3122.8,3121.4,0.03202776]
[1732113300133,0.55,3122.3,3121.4,0.03202776]
[1732113300342,0.55,3122.3,3121.9,1.60158]
[1732113300554,1.1497,3122.8,3121.2,1.60194]
[1732113300555,0.55,3122.0,3121.2,1.60194]
[1732113300745,1.2157,3121.0,3120.1,1.1842]
[1732113300986,0.55,3120.6,3120.1,2.7867]
[1732113301156,1.2157,3121.0,3120.1,2.7867]
[1732113301157,0.55,3121.0,3120.3,1.60241]
[1732113301482,0.55,3121.0,3120.3,1.60238]
[1732113301686,0.55,3121.0,3120.5,1.60229]
[1732113301899,3.20293,3122.2,3121.5,1.60175]
[1732113302098,0.55,3122.2,3120.8,1.2036]
[1732113302247,0.55,3121.5,3120.8,1.60213]
[1732113302442,0.55,3121.5,3120.6,1.2036]
[1732113302645,0.55,3121.5,3119.5,0.01]
[1732113302646,3.20472,3120.4,3119.7,1.135]
[1732113302946,0.55,3120.7,3119.7,1.409774]
[1732113303183,0.55,3120.2,3119.8,1.60262]
[1732113303351,0.55,3120.2,3119.7,1.135]
[1732113303557,0.55,3120.2,3119.6,1.60274]
[1732113303558,3.20503,3120.1,3119.3,1.1855]
[1732113303840,3.20534,3119.8,3119.3,1.1855]
[1732113304045,3.20544,3119.7,3119.1,1.60301]
[1732113304287,3.20534,3119.8,3119.1,1.561241]
[1732113304489,3.20535,3119.8,3119.1,1.561231]
[1732113304779,3.20551,3119.7,3119.1,1.561271]
[1732113305011,1.1906,3120.6,3119.8,1.28212]
[1732113305283,3.20492,3120.3,3119.5,1.28222]
[1732113305498,6.40931,3120.5,3119.8,1.28213]
[1732113305650,3.20461,3120.5,3119.6,1.28221]
[1732113305847,3.20461,3120.5,3119.3,0.03205269]
[1732113305848,1.12136356,3120.5,3119.0,1.28246]
[1732113306094,3.20568,3119.5,3118.9,2.46797]
[1732113306244,2.96636084,3120.4,3118.9,1.1855]
[1732113306245,3.20545,3119.7,3118.9,1.1855]
[1732113306442,5.4135447,3120.4,3119.1,1.28239]
[1732113306443,0.55,3119.8,3119.1,1.28239]
[1732113306643,1.31842556,3120.3,3119.8,1.28209]
[1732113306843,1.31842556,3121.1,3120.8,1.28169]
[1732113307042,1.31842556,3121.4,3120.4,1.28186]
[1732113307296,3.20464,3120.5,3119.3,1.1709]
[1732113307445,1.31842556,3121.3,3119.5,1.28224]
[1732113307446,3.20504,3120.1,3119.5,1.28224]
[1732113307647,1.31842556,3120.2,3119.3,2.45323]
[1732113307862,1.31842556,3120.0,3119.3,1.1709]
[1732113308046,1.31842556,3120.0,3118.5,0.03205241]
[1732113308047,3.20573,3119.5,3118.7,1.1709]
[1732113308360,1.31842556,3119.0,3117.4,1.20295857]
[1732113308579,4.52490556,3118.7,3117.5,1.28307]
[1732113308898,2.52763834,3118.8,3117.5,1.28307]
[1732113308899,2.97162298,3118.6,3117.6,0.245397]
[1732113309063,0.55,3118.7,3118.1,1.28282]
[1732113309269,1.31842556,3118.9,3117.5,0.03206833]
[1732113309571,1.31842556,3119.0,3118.7,1.28258]
[1732113309785,1.31842556,3119.3,3119.0,1.28246]
[1732113310003,1.31842556,3119.6,3119.3,1.2823]
[1732113310296,3.20519,3120.0,3119.3,1.2823]
[1732113310297,1.31842556,3120.1,3119.3,1.412568]
[1732113310450,1.2492,3120.2,3119.7,1.28216]
[1732113310757,1.31842556,3120.5,3119.8,0.03204462]
[1732113311098,1.31842556,3120.5,3118.8,0.01]
[1732113311099,1.2492,3119.7,3118.8,1.1561]
[1732113311388,1.2492,3119.7,3119.1,1.28238]
[1732113311559,3.20567,3119.5,3118.8,1.28251]
[1732113311762,2.56762556,3119.7,3119.4,1.28225]
[1732113311962,1.31842556,3119.9,3119.6,1.2822]
[1732113312277,1.31842556,3120.3,3120.0,1.28205]
[1732113312445,2.96905779,3120.3,3119.6,1.2822]
[1732113312648,1.31842556,3120.1,3118.7,1.165]
[1732113312903,1.31842556,3119.7,3118.5,3.0]
[1732113313062,1.31842556,3119.7,3118.3,1.31480594]
[1732113313063,3.20612,3119.1,3118.2,1.165]
[1732113313259,1.2381,3118.9,3117.8,1.1711]
[1732113313467,1.2381,3118.9,3118.1,1.28282]
[1732113313468,0.55,3118.8,3118.1,1.28282]
[1732113313787,1.2381,3118.9,3118.3,1.28274]
[1732113314083,3.75643,3118.8,3118.1,1.28281]
[1732113314286,1.31842556,3119.0,3118.1,0.28863285]
[1732113314490,1.1727,3119.3,3118.8,1.60317]
[1732113314789,3.32683722,3119.9,3119.1,1.603]
[1732113314790,1.1727,3119.9,3119.1,1.603]
[1732113314949,4.37793,3119.9,3119.3,1.60288]
[1732113315147,1.97763834,3120.2,3119.2,0.03205856]
[1732113315148,1.31842556,3120.0,3119.2,0.03205856]
[1732113315349,1.1727,3120.3,3119.8,1.60265]
[1732113315580,1.31842556,3120.6,3120.0,1.60255]
[1732113315895,1.31842556,3120.6,3119.3,3.0]
[1732113315896,2.82380928,3120.8,3119.4,1.1519]
[1732113316186,2.82380928,3120.8,3119.9,1.60259]
[1732113316187,3.4466418,3120.7,3119.9,1.60259]
[1732113316347,1.1727,3120.8,3120.0,0.03203805]
[1732113316548,4.59001506,3121.1,3119.5,4.60279]
[1732113316549,1.31842556,3121.1,3119.6,0.03203805]
[1732113316756,2.48672556,3121.3,3120.9,1.60207]
[1732113316957,3.20379,3121.3,3119.5,3.0]
[1732113317196,3.20459,3120.6,3120.0,1.60254]
[1732113317399,0.320459,3120.6,3120.0,1.60252]
[1732113317598,0.320459,3120.6,3119.6,1.2178]
[1732113317599,3.20457,3120.6,3119.6,1.2178]
[1732113317767,3.20476,3120.4,3119.8,1.60265]
[1732113317974,3.20476,3120.4,3119.2,2.75705]
[1732113317975,0.77276956,3120.4,3119.2,4.1541]
[1732113318178,0.77276956,3120.4,3118.2,1.61345]
[1732113318179,3.20552,3119.7,3118.9,1.60309]
[1732113318504,3.20552,3119.7,3118.0,1.60359]
[1732113318505,0.55,3119.1,3118.0,1.60359]
[1732113318689,3.20619,3119.0,3118.1,1.60351]
[1732113319002,3.20626,3118.9,3118.2,1.60344]
[1732113319232,3.2061,3119.1,3118.4,1.60333]
[1732113319433,0.55,3119.2,3117.7,0.03206526]
[1732113319636,0.55,3119.2,3117.7,1.60373]
[1732113319637,3.20686,3118.4,3117.7,1.60373]
[1732113319795,1.31842556,3119.1,3117.7,3.20748]
[1732113319991,1.1944,3119.3,3118.5,1.60328]
[1732113320194,1.1944,3119.3,3117.9,1.1678]
[1732113320195,3.20613,3119.1,3117.9,1.1678]
[1732113320434,3.20636,3118.8,3117.9,2.77142]
[1732113320646,3.20636,3118.8,3116.8,1.61418771]
[1732113320647,3.20712,3118.1,3117.1,1.1678]
[1732113320852,3.75698,3118.2,3117.3,1.60394]
[1732113321135,3.20731,3117.9,3117.2,1.60399]
[1732113321346,3.20708,3118.1,3116.3,1.131]
[1732113321347,3.55,3118.0,3116.3,1.131]
[1732113321550,0.320731,3117.8,3116.3,1.131]
[1732113321729,3.20709,3118.1,3117.3,1.60393]
[1732113321939,3.20736,3117.9,3116.5,1.60436]
[1732113322140,3.20707,3118.2,3117.4,1.60387]
[1732113322443,1.1655,3118.3,3117.8,1.60369]
[1732113322770,1.2282,3118.8,3118.4,1.60335]
[1732113323054,2.54662556,3119.4,3117.5,0.0320656]
[1732113323205,2.54662556,3119.4,3117.8,1.60365]
[1732113323206,4.52442556,3119.2,3117.8,1.60365]
[1732113323421,1.2249,3118.4,3117.2,1.60398]
[1732113323606,1.2249,3118.4,3116.9,1.60412]
[1732113323607,3.20751,3117.7,3116.9,1.60412]
[1732113323846,0.01,3118.3,3116.4,0.03207743]
[1732113324153,3.20747,3117.8,3116.4,0.03208229]
[1732113324449,3.0,3118.2,3116.5,0.00999771]
[1732113324618,1.2249,3118.4,3117.8,1.60369]
[1732113324832,1.2249,3118.4,3117.4,1.60389]
[1732113325135,3.20667,3118.5,3117.8,1.60365]
[1732113325310,0.55,3118.8,3117.3,2.57585]
[1732113325311,0.55,3118.8,3118.0,1.60354]
[1732113325707,1.1065,3118.9,3118.3,1.60342]
[1732113325905,3.20647,3118.7,3118.1,1.60352]
[1732113326151,0.751924,3118.7,3117.5,0.03206817]
[1732113326450,4.31279,3118.9,3118.0,1.60358]
[1732113326607,3.20662,3118.6,3117.8,1.60368]
[1732113326842,3.20662,3118.6,3117.5,1.60384]
[1732113327078,3.20662,3118.6,3117.8,1.60369]
[1732113327285,3.0,3118.8,3118.2,1.60347]
[1732113327490,4.31286,3118.9,3117.9,1.6036]
[1732113327491,0.55,3118.7,3117.9,1.6036]
[1732113327995,3.55,3118.8,3118.2,1.60345]
[1732113328146,3.55,3118.8,3116.9,0.9719]
[1732113328147,3.20737,3117.9,3116.9,0.9719]
[1732113328347,3.20737,3117.9,3117.2,1.60398]
[1732113328542,3.20737,3117.9,3117.3,1.6039]
[1732113328785,3.20693,3118.3,3117.6,1.60375]
[1732113328970,6.20671,3118.5,3117.0,0.03207699]
[1732113328971,3.20736,3117.9,3117.3,0.160398]
[1732113329173,0.55,3118.1,3117.4,1.60386]
[1732113329372,0.55,3118.1,3117.5,1.60384]
[1732113329587,0.55,3118.5,3117.5,0.32077]
[1732113329808,3.20636,3118.8,3117.5,1.6038]
[1732113330085,3.20702,3118.2,3117.5,1.60379]
[1732113330607,3.20694,3118.3,3117.6,1.60379]
[1732113330819,3.20698,3118.2,3117.6,1.60379]
[1732113330964,3.20733,3117.9,3117.2,1.60397]
[1732113331320,3.20733,3117.9,3115.3,0.00999771]
[1732113331321,0.55,3117.7,3115.3,0.00999771]
[1732113331531,3.20881,3116.5,3115.7,1.60472]
[1732113331811,0.55,3117.2,3115.7,1.60472]
[1732113331812,3.2083,3117.0,3115.8,0.19256145]
[1732113331981,4.640868,3117.6,3116.3,0.9719]
[1732113331982,1.0575,3117.6,3116.3,0.9719]
[1732113332312,1.0575,3118.4,3117.8,1.60364]
[1732113332813,1.1275,3118.8,3117.5,3.0]
[1732113332980,4.33392,3118.8,3117.9,1.60364]
[1732113333172,4.33392,3118.8,3117.4,0.9719]
[1732113333173,1.1275,3118.8,3117.6,1.60379]
[1732113333371,1.1275,3118.8,3117.7,0.460379]
[1732113333670,1.1275,3118.8,3117.4,0.9719]
[1732113333999,3.20674,3118.5,3116.9,0.9719]
[1732113334319,3.20686,3118.4,3117.0,0.257606]
[1732113334614,3.20732,3117.9,3117.3,1.60391]
[1732113334794,6.41446,3118.0,3117.3,1.60391]
[1732113334969,1.026,3117.9,3116.9,0.9719]
[1732113335170,3.20786,3117.4,3116.7,1.60422]
[1732113335398,3.20753,3117.7,3117.0,1.60405]
[1732113335596,3.20769,3117.5,3116.6,3.20858]
[1732113335815,3.20769,3117.5,3116.4,0.9719]
[1732113335816,3.20821,3117.0,3115.8,0.9719]
[1732113336013,3.20821,3117.0,3116.3,1.60446]
[1732113336172,3.2079,3117.3,3115.9,1.60465]
[1732113336370,3.20858,3116.7,3116.1,1.60456]
[1732113336586,3.0,3116.6,3116.1,1.60456]
[1732113336784,3.0,3116.6,3115.9,1.60465]
[1732113336988,3.0,3116.7,3116.2,1.60447]
[1732113337207,3.20879,3116.5,3115.8,2.57658]
[1732113337376,0.01,3117.4,3115.6,1.60481]
[1732113337377,1.329,3116.6,3115.6,1.60481]
[1732113337719,3.20889,3116.4,3115.4,2.57682]
[1732113337871,1.0643,3115.7,3114.6,0.9719]
[1732113338094,4.27393,3115.7,3114.9,1.60515]
[1732113338354,3.0,3115.9,3115.4,1.60488]
[1732113338549,3.20932,3116.0,3115.2,1.60502]
[1732113338837,0.728832,3116.0,3114.6,0.9719]
[1732113339038,3.2098,3115.5,3114.8,1.60518]
[1732113339199,6.20956,3115.7,3114.8,1.60518]
[1732113339392,7.206464,3115.7,3114.9,1.60517]
[1732113339757,1.079,3115.5,3114.1,0.9719]
[1732113339896,3.21037,3115.0,3114.3,1.60548]
[1732113340095,6.21044,3114.9,3114.2,1.60554]
[1732113340304,3.0,3115.2,3114.5,1.60539]
[1732113340506,4.079,3115.5,3114.9,1.60517]
[1732113340813,1.0791,3116.0,3114.9,1.926216]
[1732113341157,1.0791,3116.0,3114.1,0.9719]
[1732113341158,3.0,3115.7,3114.1,0.9719]
[1732113341293,4.0792,3115.0,3113.8,0.005]
[1732113341498,3.21101,3114.3,3113.8,0.005]
[1732113341847,3.2108,3114.5,3113.8,0.005]
[1732113342136,3.0,3114.6,3113.9,1.60569]
[1732113342335,3.0,3114.8,3114.1,1.60555]
[1732113342711,3.0,3114.8,3113.8,0.005]
[1732113342712,3.21068,3114.7,3113.8,0.005]
[1732113342895,4.14596944,3114.8,3113.8,0.005]
[1732113343098,3.21065,3114.7,3113.9,1.60568]
[1732113343302,4.17010437,3114.9,3113.8,0.005]
[1732113343605,4.17010437,3114.9,3114.0,1.60564]
[1732113343808,3.21061,3114.7,3114.0,1.60564]
[1732113344009,0.55,3114.6,3113.8,1.61071]
[1732113344410,4.69503481,3114.9,3113.8,1.61071]
[1732113344411,3.55,3114.8,3113.8,0.005]
[1732113344737,3.21129,3114.1,3113.8,0.005]
[1732113344950,3.21131,3114.0,3113.8,0.005]
[1732113345103,4.12742348,3114.8,3113.8,0.005]
[1732113345302,0.55,3114.3,3113.8,0.005]
[1732113345515,3.21125,3114.1,3113.8,0.005]
[1732113345699,3.21068,3114.6,3113.8,0.005]
[1732113345934,3.2113,3114.0,3113.8,0.005]
[1732113346246,3.2114,3113.9,3113.8,0.005]
[1732113346568,3.21185,3113.5,3113.0,0.01]
[1732113346697,3.63479,3113.9,3113.0,0.01]
[1732113346893,3.21169,3113.7,3113.0,1.61614]
[1732113347137,3.21151,3113.8,3113.0,0.01]
[1732113347304,3.21182,3113.5,3113.0,0.01]
[1732113347504,0.423411,3113.8,3113.0,0.01]
[1732113347505,3.21195,3113.4,3113.0,0.01]
[1732113347706,3.0,3113.7,3113.0,0.01]
[1732113347911,4.28164,3114.4,3113.6,1.60582]
[1732113348124,1.0707,3114.4,3113.4,0.9719]
[1732113348320,1.0707,3114.4,3113.8,1.60574]
[1732113348540,1.0707,3114.4,3113.4,2.57784]
[1732113348811,1.0707,3114.4,3113.1,1.60609]
[1732113349038,3.21137,3114.0,3113.3,1.60597]
[1732113349354,3.21111,3114.2,3113.3,1.60597]
[1732113349500,3.21111,3114.2,3113.4,1.60596]
[1732113349709,4.28161,3114.4,3113.4,1.60596]
[1732113349710,1.0707,3114.4,3113.4,0.9719]
[1732113349937,3.2106,3114.7,3114.0,1.60564]
[1732113350120,4.16296106,3115.2,3114.0,1.60564]
[1732113350121,1.0181,3115.2,3114.4,1.60543]
[1732113350331,1.0181,3115.2,3114.0,0.160564]
[1732113350332,1.0181,3115.2,3114.3,1.60548]
[1732113350532,4.22823,3115.2,3114.6,1.60533]
[1732113350724,4.22823,3115.2,3114.5,1.60534]
[1732113350913,1.0181,3115.2,3114.5,1.60534]
[1732113351113,1.1163,3115.7,3114.9,1.60514]
[1732113351300,1.1163,3115.7,3114.4,0.9719]
[1732113351499,1.1163,3115.7,3114.9,1.60515]
[1732113351696,1.1163,3115.7,3114.7,1.60525]
[1732113351697,3.20983,3115.5,3114.8,1.6052]
[1732113351927,3.20983,3115.5,3114.6,1.60533]
[1732113351928,3.21003,3115.3,3114.6,1.60533]
[1732113352110,3.20979,3115.5,3114.9,1.60515]
[1732113352319,4.32588,3115.7,3115.0,1.60513]
[1732113352512,1.1163,3115.7,3114.5,0.03210398]
[1732113352720,3.20976,3115.5,3114.8,1.60519]
[1732113352944,1.1163,3115.7,3115.3,1.60497]
[1732113353144,1.0943,3116.1,3115.1,1.60507]
[1732113353354,3.20951,3115.8,3115.1,1.60507]
[1732113353568,3.20951,3115.8,3115.2,1.60502]
[1732113353854,1.0943,3116.1,3114.5,1.863081]
[1732113353855,3.20964,3115.7,3115.0,1.6051]
[1732113354052,3.20937,3115.9,3114.5,1.863081]
[1732113354053,3.0,3116.0,3115.2,1.60499]
[1732113354341,3.20951,3115.8,3115.2,1.60499]
[1732113354640,3.20963,3115.7,3114.9,1.60516]
[1732113354948,3.20937,3115.9,3115.3,1.60496]
[1732113355139,3.0,3116.0,3115.2,1.60498]
[1732113355351,3.20916,3116.1,3115.5,1.60486]
[1732113355504,3.20939,3115.9,3115.3,1.60494]
[1732113355705,3.20916,3116.1,3115.5,1.60487]
[1732113355906,3.20906,3116.2,3115.1,3.21016]
[1732113356207,1.0775,3116.7,3115.2,0.417016]
[1732113356403,1.0775,3116.7,3115.9,1.60463]
[1732113356652,1.0775,3116.7,3116.1,1.60453]
[1732113356653,4.28609,3116.7,3116.1,1.60453]
[1732113356902,3.20839,3116.9,3116.2,1.60451]
[1732113357081,3.20811,3117.1,3116.0,0.96]
[1732113357294,3.2089,3116.4,3114.9,0.96]
[1732113357468,3.2089,3116.4,3115.7,1.60473]
[1732113357664,3.20862,3116.6,3115.3,1.60494]
[1732113357893,3.20944,3115.9,3115.1,1.60506]
[1732113358211,0.55,3115.9,3114.7,1.60527]
[1732113358503,3.20979,3115.5,3114.9,1.60518]
[1732113358857,0.641945,3115.5,3114.5,1.60538]
[1732113359069,3.21004,3115.3,3114.5,1.60539]
[1732113359284,3.20982,3115.5,3114.7,1.60525]
[1732113359468,3.20957,3115.7,3114.9,1.60515]
[1732113359666,3.20935,3115.9,3115.3,1.60495]
[1732113359897,1.0462,3116.0,3115.3,1.60495]
[1732113360205,0.84254544,3115.9,3115.4,1.60491]
[1732113360357,4.25544,3116.0,3115.1,0.96]
[1732113360358,1.0462,3116.0,3115.5,1.60483]
[1732113360768,3.0,3116.2,3115.7,1.60473]
[1732113361000,3.20895,3116.3,3115.1,0.96]
[1732113361001,0.320898,3116.3,3115.1,0.96]
[1732113361303,3.20939,3115.9,3114.7,0.96]
[1732113361507,3.21017,3115.1,3114.5,1.60534]
[1732113361711,0.55,3115.5,3114.6,1.60533]
[1732113361916,0.55,3115.0,3113.8,0.96]
[1732113362069,0.55,3114.6,3113.8,0.96]
[1732113362264,0.55,3114.6,3113.5,1.60589]
[1732113362509,0.55,3114.6,3114.0,1.60564]
[1732113362818,1.0152,3114.9,3114.4,1.60541]
[1732113363109,1.5647,3115.3,3114.6,1.60533]
[1732113363266,4.17010437,3115.9,3114.9,1.60513]
[1732113363468,3.20977,3115.5,3114.4,1.60542]